bitfinex/quotes_BTCUSD_20241123
["timestamp","ask_amount","ask_price","bid_price","bid_amount"]
[1732377479199,0.10201427,98294.0,98290.0,0.08662371]
[1732377481117,0.30201427,98294.0,98290.0,0.04447232]
[1732377484536,0.30201427,98294.0,98290.0,0.04310643]
[1732377485006,0.30201427,98294.0,98290.0,0.04263258]
[1732377485469,0.30201427,98294.0,98290.0,0.03500881]
[1732377487155,0.0491,98293.0,98290.0,0.03500881]
[1732377487385,0.10201427,98292.0,98290.0,0.02850172]
[1732377490072,0.10201427,98292.0,98290.0,0.02632359]
[1732377490329,0.10201427,98292.0,98280.0,0.05463855]
[1732377490565,0.10201427,98292.0,98280.0,0.1092771]
[1732377492199,0.10201427,98292.0,98280.0,0.10710311]
[1732377492421,0.10201427,98292.0,98281.0,0.15]
[1732377494155,0.10201427,98292.0,98280.0,0.05463855]
[1732377494602,0.1268,98291.0,98273.0,0.04211806]
[1732377494837,0.10201427,98290.0,98280.0,0.05463855]
[1732377496307,0.10201427,98290.0,98280.0,0.1092771]
[1732377496570,0.10201427,98290.0,98281.0,0.15]
[1732377497031,0.10201427,98290.0,98267.0,0.05917145]
[1732377497277,0.10201427,98290.0,98280.0,0.1092771]
[1732377497788,0.10201427,98290.0,98280.0,0.05463855]
[1732377500631,0.10201427,98290.0,98281.0,0.15]
[1732377500857,0.10201427,98290.0,98280.0,0.05463855]
[1732377502380,0.10373467,98290.0,98280.0,0.05463855]
[1732377502868,0.10373467,98290.0,98281.0,0.15]
[1732377504771,0.10373467,98290.0,98280.0,0.05463855]
[1732377505031,0.10373467,98290.0,98281.0,0.15]
[1732377506138,0.10373467,98290.0,98280.0,0.09491965]
[1732377507252,0.10373467,98290.0,98281.0,0.15]
[1732377508903,0.10373467,98290.0,98281.0,0.14782552]
[1732377510527,0.10373467,98290.0,98280.0,0.09491965]
[1732377511711,0.10373467,98290.0,98281.0,0.15]
[1732377511942,0.10373467,98290.0,98280.0,0.09491965]
[1732377516908,0.10373467,98290.0,98281.0,0.15]
[1732377525692,0.10373467,98290.0,98280.0,0.09577955]
[1732377528067,0.0458,98289.0,98280.0,0.09577955]
[1732377528284,0.10201427,98288.0,98280.0,0.09577955]
[1732377530997,0.10201427,98288.0,98278.0,0.05463855]
[1732377532761,0.10201427,98288.0,98278.0,0.05425492]
[1732377534245,0.10201427,98288.0,98279.0,0.15]
[1732377535647,0.10201427,98288.0,98279.0,0.1589895]
[1732377539813,0.10201427,98288.0,98279.0,0.1598494]
[1732377542436,0.10201427,98288.0,98279.0,0.2098494]
[1732377552971,0.10373407,98288.0,98279.0,0.2098494]
[1732377556152,0.10373407,98288.0,98279.0,0.20767516]
[1732377569132,0.0478,98287.0,98279.0,0.0598494]
[1732377569376,0.30373407,98288.0,98279.0,0.0598494]
[1732377569377,0.0478,98285.0,98279.0,0.0598494]
[1732377569597,0.10201427,98286.0,98279.0,0.0598494]
[1732377569598,0.0478,98283.0,98279.0,0.0598494]
[1732377569819,0.10201427,98282.0,98279.0,0.0598494]
[1732377574999,0.10201427,98282.0,98279.0,0.05767574]
[1732377575455,0.10201427,98282.0,98279.0,0.05550214]
[1732377575881,0.3257,98281.0,98279.0,0.05332854]
[1732377576096,0.42771427,98280.0,98279.0,0.05332854]
[1732377581238,0.42771427,98280.0,98279.0,0.01332854]
[1732377585373,0.2,98275.0,98253.0,0.02423865]
[1732377585617,0.0474,98273.0,98265.0,0.05463855]
[1732377585829,0.0474,98273.0,98260.0,0.05463855]
[1732377585830,0.10201427,98272.0,98260.0,0.1092771]
[1732377586495,0.10201427,98272.0,98260.0,0.10746367]
[1732377587755,0.10201427,98272.0,98262.0,0.05463855]
[1732377588589,0.0474,98271.0,98262.0,0.05463855]
[1732377588800,0.10201427,98270.0,98262.0,0.05463855]
[1732377589056,0.0474,98269.0,98260.0,0.09515205]
[1732377589269,0.10201427,98268.0,98260.0,0.09515205]
[1732377591310,0.10201427,98268.0,98260.0,0.09601215]
[1732377594697,0.10201427,98268.0,98260.0,0.0413736]
[1732377596021,0.0474,98267.0,98260.0,0.0413736]
[1732377596228,0.10201427,98266.0,98260.0,0.0413736]
[1732377601068,0.10133373,98266.0,98260.0,0.0413736]
[1732377605086,0.10133373,98266.0,98256.0,0.05463855]
[1732377606025,0.10133373,98266.0,98256.0,0.03020233]
[1732377606875,0.10133373,98266.0,98256.0,0.05463855]
[1732377607643,0.0467,98265.0,98256.0,0.05463855]
[1732377607883,0.10201427,98264.0,98256.0,0.05463855]
[1732377608666,0.023,98263.0,98256.0,0.05463855]
[1732377608873,0.023,98261.0,98256.0,0.05463855]
[1732377609082,0.10201427,98260.0,98256.0,0.05463855]
[1732377610162,0.10201427,98260.0,98253.0,0.04126905]
[1732377610391,0.0467,98265.0,98254.0,0.00101768]
[1732377610638,0.10201427,98264.0,98254.0,0.00101768]
[1732377610891,0.0017202,98272.0,98256.0,0.15]
[1732377611096,0.0017202,98272.0,98263.0,0.2296]
[1732377611318,0.0017202,98272.0,98264.0,0.00101745]
[1732377611788,0.0017202,98272.0,98263.0,0.2296]
[1732377612522,0.0017202,98272.0,98263.0,0.0796]
[1732377612758,0.0017202,98272.0,98263.0,0.12102332]
[1732377612979,0.0017202,98272.0,98264.0,0.15]
[1732377615738,0.00172,98266.0,98264.0,0.15]
[1732377615979,0.00172,98266.0,98265.0,0.02812523]
[1732377616231,0.00172,98266.0,98265.0,0.02501745]
[1732377616732,0.00172,98266.0,98265.0,0.024]
[1732377619964,0.00172,98266.0,98265.0,0.02325122]
[1732377624767,0.00172,98266.0,98256.0,0.07721316]
[1732377625035,0.00172,98266.0,98257.0,0.10201427]
[1732377626605,0.00172,98266.0,98258.0,0.15101742]
[1732377626825,0.00172,98266.0,98260.0,0.15]
[1732377627044,0.00172,98266.0,98261.0,0.00101742]
[1732377627784,0.00172,98266.0,98262.0,0.0755]
[1732377628452,0.0017202,98272.0,98264.0,0.15]
[1732377628680,0.0017202,98272.0,98265.0,0.17853161]
[1732377628905,0.0017202,98272.0,98266.0,0.15]
[1732377629130,0.0017202,98272.0,98268.0,0.15]
[1732377629370,0.0017202,98272.0,98270.0,0.15]
[1732377629618,0.0017202,98272.0,98271.0,0.00101734]
[1732377630364,0.0017202,98272.0,98271.0,0.53223161]
[1732377630611,0.0017202,98272.0,98271.0,0.33121427]
[1732377630851,0.0017202,98272.0,98271.0,0.37234937]
[1732377631073,0.0017198,98282.0,98276.0,0.002]
[1732377631312,0.0017198,98282.0,98277.0,0.10303151]
[1732377631558,0.0017198,98282.0,98278.0,0.15]
[1732377631781,0.0017198,98282.0,98279.0,0.10303151]
[1732377632033,0.0017198,98282.0,98280.0,0.15]
[1732377632249,0.0017198,98282.0,98281.0,0.00101724]
[1732377633470,0.0017198,98282.0,98281.0,0.25303151]
[1732377633694,0.0017198,98282.0,98281.0,0.32921427]
[1732377635259,0.0017198,98282.0,98281.0,0.53121427]
[1732377636234,0.0017198,98282.0,98281.0,0.57176338]
[1732377637177,0.0017198,98282.0,98281.0,0.56976338]
[1732377638372,0.0017198,98282.0,98281.0,0.56506673]
[1732377639132,0.0017198,98282.0,98281.0,0.56706673]
[1732377639379,0.0017198,98282.0,98281.0,0.56506673]
[1732377639836,0.0017198,98282.0,98281.0,0.56706673]
[1732377640299,0.0017198,98282.0,98281.0,0.56506673]
[1732377640530,0.0017198,98282.0,98281.0,0.56706673]
[1732377642324,0.0017198,98282.0,98281.0,0.36446948]
[1732377643054,1.0017198,98282.0,98281.0,0.36446948]
[1732377643295,1.0017198,98282.0,98281.0,0.16446948]
[1732377643525,1.0017198,98282.0,98281.0,0.36446948]
[1732377644018,1.0017198,98282.0,98281.0,0.34456338]
[1732377644260,1.0017198,98282.0,98281.0,0.29456338]
[1732377644481,1.0017198,98282.0,98281.0,0.49456338]
[1732377644706,1.0017198,98282.0,98281.0,0.29456338]
[1732377645410,1.0017198,98282.0,98281.0,0.29256338]
[1732377646620,1.0017198,98282.0,98281.0,0.29456338]
[1732377647552,1.0017198,98282.0,98281.0,0.29256338]
[1732377650584,0.90512961,98282.0,98281.0,0.29256338]
[1732377651032,0.76028689,98282.0,98281.0,0.29256338]
[1732377651993,0.76028689,98282.0,98281.0,0.28328059]
[1732377652447,0.49867985,98282.0,98281.0,0.28328059]
[1732377653337,0.49867985,98282.0,98281.0,0.28528059]
[1732377653801,0.49867985,98282.0,98281.0,0.28247053]
[1732377654255,0.49867985,98282.0,98281.0,0.28047053]
[1732377654518,0.49867985,98282.0,98281.0,0.27811706]
[1732377654752,0.49867985,98282.0,98281.0,0.28011706]
[1732377655661,0.49867985,98282.0,98281.0,0.27811706]
[1732377657571,0.49867985,98282.0,98281.0,0.28011706]
[1732377658016,0.36647446,98282.0,98281.0,0.28011706]
[1732377658256,0.35060013,98282.0,98281.0,0.28011706]
[1732377659427,0.35060013,98282.0,98281.0,0.27811706]
[1732377659641,0.35060013,98282.0,98281.0,0.28011706]
[1732377662943,0.0784,98299.0,98293.0,0.002]
[1732377662944,0.01636765,98299.0,98293.0,0.002]
[1732377663175,0.0479,98307.0,98299.0,0.002]
[1732377663427,0.0479,98307.0,98300.0,0.10303125]
[1732377663650,0.0479,98307.0,98302.0,0.002]
[1732377664174,0.0479,98307.0,98298.0,0.16391565]
[1732377664420,0.0479,98307.0,98298.0,0.26592992]
[1732377664900,0.03463269,98307.0,98298.0,0.10201427]
[1732377665818,0.03463269,98307.0,98299.0,0.15]
[1732377666558,0.03463269,98307.0,98299.0,0.15]
[1732377666997,0.01349733,98307.0,98299.0,0.152]
[1732377667446,0.01349733,98307.0,98299.0,0.19330476]
[1732377670184,0.01349733,98307.0,98299.0,0.19130476]
[1732377674039,0.02258195,98309.0,98300.0,0.00101698]
[1732377674252,0.02072895,98309.0,98300.0,0.00101698]
[1732377674468,0.02025864,98309.0,98300.0,0.00101698]
[1732377675124,0.0017196,98323.0,98300.0,0.00101698]
[1732377675359,0.0017196,98323.0,98313.0,0.1092771]
[1732377675559,0.0017196,98323.0,98314.0,0.15101691]
[1732377676968,0.0474,98322.0,98314.0,0.15101691]
[1732377677468,0.0772,98321.0,98314.0,0.15101691]
[1732377677737,0.0474,98320.0,98314.0,0.15101691]
[1732377678353,0.0474,98320.0,98314.0,0.15]
[1732377679566,0.0474,98320.0,98314.0,0.19021213]
[1732377685600,0.0017196,98323.0,98314.0,0.19021213]
[1732377685601,0.10201427,98319.0,98314.0,0.04021213]
[1732377686048,0.1246,98318.0,98309.0,0.05463855]
[1732377686278,0.10201427,98317.0,98309.0,0.05463855]
[1732377686501,0.047,98314.0,98309.0,0.05463855]
[1732377686717,0.047,98311.0,98304.0,0.05463855]
[1732377686963,0.0772,98310.0,98301.0,0.15]
[1732377687393,0.10201427,98313.0,98301.0,0.15]
[1732377687394,0.0772,98308.0,98301.0,0.15]
[1732377687615,0.047,98307.0,98301.0,0.15]
[1732377687830,0.047,98305.0,98301.0,0.15]
[1732377688039,0.078,98304.0,98296.0,0.15]
[1732377688279,0.047,98303.0,98295.0,0.15]
[1732377690545,0.047,98301.0,98294.0,0.05463855]
[1732377690758,0.10201427,98313.0,98275.0,0.21748713]
[1732377690759,0.047,98299.0,98276.0,0.15]
[1732377690971,0.047,98297.0,98289.0,0.05463855]
[1732377691395,0.078,98296.0,98289.0,0.05463855]
[1732377691615,0.047,98295.0,98289.0,0.05463855]
[1732377692916,0.047,98295.0,98280.0,0.05463855]
[1732377692917,0.047,98295.0,98285.0,0.05463855]
[1732377693127,0.047,98293.0,98285.0,0.05463855]
[1732377693381,0.047,98293.0,98281.0,0.15]
[1732377695027,0.02764714,98293.0,98281.0,0.15]
[1732377695675,0.01749892,98293.0,98281.0,0.15]
[1732377696339,0.0768,98293.0,98275.0,0.05605039]
[1732377696589,0.0768,98292.0,98283.0,0.05463855]
[1732377697025,0.0768,98292.0,98280.0,0.05463855]
[1732377697520,0.0768,98292.0,98280.0,0.1092771]
[1732377697728,0.0768,98292.0,98280.0,0.05463855]
[1732377697943,0.06972525,98292.0,98280.0,0.05463855]
[1732377698380,0.10201427,98291.0,98271.0,0.04265956]
[1732377698633,0.0496,98290.0,98280.0,0.05463855]
[1732377699779,0.0496,98290.0,98281.0,0.0008597]
[1732377701015,0.0768,98289.0,98281.0,0.0008597]
[1732377702016,0.02478172,98289.0,98281.0,0.0008597]
[1732377704070,0.0496,98288.0,98281.0,0.0008597]
[1732377707702,0.0496,98288.0,98281.0,0.0429757]
[1732377713042,0.02478172,98289.0,98281.0,0.0429757]
[1732377716041,0.0451,98288.0,98281.0,0.0429757]
[1732377718166,0.0451,98288.0,98279.0,0.01969131]
[1732377720626,0.0451,98288.0,98287.0,0.15]
[1732377721064,0.0451,98288.0,98279.0,0.01969131]
[1732377721277,0.0451,98288.0,98280.0,0.00101737]
[1732377721490,0.00172,98297.0,98279.0,0.15]
[1732377721491,0.0451,98293.0,98279.0,0.15]
[1732377721929,0.0451,98293.0,98283.0,0.05463855]
[1732377722147,0.0451,98293.0,98284.0,0.00101731]
[1732377723729,0.0451,98293.0,98280.0,0.00667372]
[1732377723943,0.0451,98293.0,98283.0,0.05463855]
[1732377724161,0.0451,98293.0,98284.0,0.00101731]
[1732377725579,0.0783,98292.0,98283.0,0.05463855]
[1732377725861,0.0482,98291.0,98283.0,0.05463855]
[1732377726094,0.0482,98291.0,98283.0,0.04813665]
[1732377726818,0.0482,98291.0,98284.0,0.00101733]
[1732377727077,0.0482,98291.0,98280.0,0.110137]
[1732377727078,0.0482,98291.0,98281.0,0.15101732]
[1732377727892,0.0482,98291.0,98281.0,0.15]
[1732377728653,0.0482,98291.0,98282.0,0.00101733]
[1732377730559,0.0482,98291.0,98283.0,0.00101733]
[1732377730790,0.0482,98291.0,98282.0,0.00101733]
[1732377733756,0.0482,98291.0,98285.0,0.15]
[1732377733973,0.0482,98291.0,98286.0,0.00101733]
[1732377734209,0.0482,98291.0,98287.0,0.15]
[1732377734434,0.0482,98291.0,98289.0,0.30694901]
[1732377734696,0.0482,98291.0,98290.0,0.15]
[1732377736072,0.0482,98291.0,98280.0,0.110137]
[1732377736073,0.0482,98291.0,98281.0,0.15]
[1732377738024,0.0380385,98291.0,98288.0,0.15]
[1732377738238,0.0380385,98291.0,98289.0,0.15]
[1732377738455,0.07477662,98292.0,98291.0,0.15]
[1732377739594,0.07477662,98292.0,98288.0,0.15]
[1732377740048,0.07477662,98292.0,98288.0,0.45749116]
[1732377741607,0.12297662,98292.0,98288.0,0.45749116]
[1732377742046,0.12297662,98292.0,98290.0,0.15]
[1732377742496,0.12297662,98292.0,98290.0,0.45749116]
[1732377742709,0.12297662,98292.0,98290.0,0.15]
[1732377742931,0.05998903,98292.0,98290.0,0.15]
[1732377743170,0.05998903,98292.0,98286.0,0.15]
[1732377743171,0.0482,98292.0,98286.0,0.15]
[1732377743688,0.0482,98292.0,98287.0,0.00101729]
[1732377743909,0.0482,98292.0,98281.0,0.15]
[1732377744730,0.0482,98292.0,98282.0,0.00050867]
[1732377746423,0.0482,98292.0,98282.0,0.05463855]
[1732377746883,0.0482,98292.0,98258.0,0.202]
[1732377747136,0.0482,98292.0,98282.0,0.05463855]
[1732377751582,0.00172,98293.0,98279.0,0.0798]
[1732377751583,0.00172,98293.0,98279.0,0.2298]
[1732377751796,0.00172,98293.0,98282.0,0.05463855]
[1732377752020,0.00172,98293.0,98281.0,0.1508598]
[1732377752438,0.0017196,98292.0,98281.0,0.1508598]
[1732377756345,0.0017196,98292.0,98281.0,0.45860288]
[1732377756563,0.0017196,98292.0,98283.0,0.15]
[1732377756986,0.0017196,98292.0,98287.0,0.15]
[1732377757489,0.0017196,98292.0,98287.0,0.64275952]
[1732377757951,0.0017196,98292.0,98287.0,0.15]
[1732377758614,0.0017196,98292.0,98287.0,0.64275952]
[1732377758795,0.0017196,98292.0,98287.0,0.15]
[1732377759300,0.0487,98291.0,98287.0,0.15]
[1732377759721,0.0487,98291.0,98286.0,0.15]
[1732377760599,0.0487,98291.0,98285.0,0.15]
[1732377761056,0.0487,98291.0,98284.0,0.15]
[1732377761550,0.0487,98291.0,98282.0,0.05463855]
[1732377764650,0.0487,98291.0,98282.0,0.05183929]
[1732377767749,0.0487,98291.0,98281.0,0.1508598]
[1732377769490,0.0487,98291.0,98280.0,0.13092314]
[1732377769704,0.0487,98291.0,98281.0,0.10914328]
[1732377771686,0.0487,98291.0,98282.0,0.15]
[1732377775446,0.0487,98291.0,98281.0,0.04265028]
[1732377775676,0.0487,98291.0,98281.0,0.19265028]
[1732377776552,0.0487,98291.0,98281.0,0.15]
[1732377777010,0.0487,98291.0,98281.0,0.0008599]
[1732377777231,0.0487,98291.0,98281.0,0.05543154]
[1732377777447,0.0504198,98291.0,98281.0,0.20543154]
[1732377784490,0.0504198,98291.0,98281.0,0.20560616]
[1732377786046,0.0504198,98291.0,98281.0,0.15103452]
[1732377787594,0.0504198,98291.0,98281.0,0.64460666]
[1732377788674,0.0504198,98291.0,98281.0,0.15103452]
[1732377791133,0.0504198,98291.0,98281.0,0.64463471]
[1732377794052,0.0504198,98291.0,98284.0,0.15]
[1732377795495,0.0504198,98291.0,98281.0,0.15103452]
[1732377797713,0.0504198,98291.0,98281.0,0.64474535]
[1732377798184,0.0504198,98291.0,98284.0,0.15]
[1732377798409,0.0504198,98291.0,98286.0,0.15]
[1732377800426,0.0504198,98291.0,98286.0,0.64371083]
[1732377800639,0.0504198,98291.0,98286.0,0.15]
[1732377800856,0.0504198,98291.0,98285.0,0.15]
[1732377801076,0.0504198,98291.0,98283.0,0.49371083]
[1732377801077,0.0504198,98291.0,98284.0,0.15]
[1732377801760,0.0504198,98291.0,98286.0,0.15]
[1732377803138,0.0504198,98291.0,98286.0,0.64371083]
[1732377803359,0.0504198,98291.0,98286.0,0.15]
[1732377803789,0.0504198,98291.0,98286.0,0.64371083]
[1732377804001,0.0504198,98291.0,98286.0,0.15]
[1732377804915,0.0504198,98291.0,98285.0,0.64371083]
[1732377806278,0.0504198,98291.0,98285.0,0.15]
[1732377807218,0.0504198,98291.0,98285.0,0.64371083]
[1732377807671,0.0504198,98291.0,98285.0,0.15]
[1732377807894,0.0504198,98291.0,98284.0,0.15]
[1732377808344,0.0504198,98291.0,98283.0,0.64371083]
[1732377811919,0.0504198,98291.0,98285.0,0.15]
[1732377813058,0.0504198,98291.0,98284.0,0.15]
[1732377815098,0.0504198,98291.0,98284.0,0.64371083]
[1732377815313,0.0504198,98291.0,98284.0,0.15]
[1732377816386,0.0504198,98291.0,98284.0,0.64371083]
[1732377816602,0.0504198,98291.0,98284.0,0.15]
[1732377818648,0.0504198,98291.0,98283.0,0.49371083]
[1732377818649,0.0504198,98291.0,98283.0,0.15]
[1732377819336,0.0504198,98291.0,98281.0,0.00103452]
[1732377821537,0.0504198,98291.0,98281.0,0.15103452]
[1732377824220,0.05005778,98291.0,98281.0,0.15103452]
[1732377834236,0.0476,98289.0,98280.0,0.10914328]
[1732377834489,0.0476,98287.0,98281.0,0.05457164]
[1732377834742,0.0783,98286.0,98280.0,0.05457164]
[1732377834970,0.0783,98284.0,98277.0,0.05457164]
[1732377835220,0.0476,98283.0,98277.0,0.05457164]
[1732377835484,0.0476,98281.0,98276.0,0.05457164]
[1732377835739,0.0476,98281.0,98273.0,0.05457164]
[1732377838048,0.0476,98281.0,98271.0,0.05457164]
[1732377842827,0.0476,98281.0,98272.0,0.15]
[1732377844208,0.0476,98281.0,98275.0,0.15]
[1732377845875,0.0476,98281.0,98271.0,0.10914328]
[1732377848065,0.0476,98281.0,98272.0,0.15]
[1732377849024,0.04932,98281.0,98272.0,0.15]
[1732377854965,0.04932,98281.0,98267.0,0.00866874]
[1732377855203,0.04932,98281.0,98271.0,0.10914328]
[1732377857024,0.04932,98281.0,98272.0,0.15]
[1732377859437,0.04932,98281.0,98271.0,0.05457164]
[1732377859644,0.04932,98281.0,98271.0,0.10914328]
[1732377860508,0.04932,98281.0,98261.0,0.04048477]
[1732377860775,0.04932,98281.0,98271.0,0.10914328]
[1732377861283,0.04932,98281.0,98271.0,0.11000338]
[1732377862624,0.04932,98281.0,98272.0,0.15]
[1732377864500,0.04932,98281.0,98272.0,0.14392104]
[1732377868873,0.03927534,98281.0,98272.0,0.14392104]
[1732377872203,0.03927534,98281.0,98280.0,0.15]
[1732377873749,0.03927534,98281.0,98271.0,0.09669668]
[1732377874248,0.00172,98281.0,98273.0,0.15]
[1732377874466,0.00172,98281.0,98275.0,0.15]
[1732377874687,0.00172,98281.0,98277.0,0.15]
[1732377874909,0.00172,98281.0,98277.0,0.10201427]
[1732377875139,0.00172,98281.0,98278.0,0.15]
[1732377879361,0.0017198,98291.0,98278.0,0.15]
[1732377879575,0.0017198,98291.0,98281.0,0.20457164]
[1732377883454,0.083,98289.0,98281.0,0.15]
[1732377883680,0.0452,98288.0,98281.0,0.20457164]
[1732377885089,0.0452,98288.0,98281.0,0.24604814]
[1732377886547,0.0452,98288.0,98287.0,0.15]
[1732377888058,0.0452,98288.0,98281.0,0.0414765]
[1732377888522,0.0452,98288.0,98278.0,0.75292808]
[1732377889008,0.0452,98288.0,98278.0,0.7933375]
[1732377889243,0.0452,98288.0,98282.0,0.4937848]
[1732377889479,0.0452,98288.0,98283.0,0.15]
[1732377889951,0.0452,98288.0,98283.0,0.6437848]
[1732377890616,0.0452,98288.0,98285.0,0.15]
[1732377891094,0.0452,98288.0,98283.0,0.15]
[1732377892035,0.0452,98288.0,98280.0,0.30767337]
[1732377892253,0.0452,98288.0,98282.0,0.15]
[1732377892498,0.0452,98288.0,98278.0,0.1495527]
[1732377894306,0.0452,98288.0,98279.0,0.15]
[1732377895200,0.0452,98288.0,98278.0,0.1495527]
[1732377895201,0.0452,98288.0,98278.0,0.09498106]
[1732377897911,0.0452,98288.0,98279.0,0.15]
[1732377898533,0.0452,98288.0,98280.0,0.02933488]
[1732377899671,0.04692,98288.0,98280.0,0.02933488]
[1732377900141,0.083,98289.0,98280.0,0.02933488]
[1732377900787,0.083,98289.0,98279.0,0.15]
[1732377901869,0.06287313,98289.0,98279.0,0.15]
[1732377902094,0.06287313,98289.0,98287.0,0.15]
[1732377902323,0.06287313,98289.0,98287.0,0.30764733]
[1732377902594,0.06287313,98289.0,98288.0,0.15]
[1732377904152,0.06005671,98289.0,98288.0,0.15]
[1732377905279,0.0017198,98291.0,98288.0,0.15]
[1732377906621,0.0017198,98291.0,98288.0,0.45763693]
[1732377907101,0.0017198,98291.0,98279.0,0.15]
[1732377911688,0.0017198,98291.0,98279.0,0.15086]
[1732377914305,0.0017198,98291.0,98279.0,0.1442518]
[1732377916340,0.001083,98290.0,98279.0,0.14316271]
[1732377916775,0.001083,98290.0,98279.0,0.14207401]
[1732377923262,0.0028028,98290.0,98279.0,0.14207401]
[1732377925716,0.0028028,98290.0,98279.0,0.63566298]
[1732377925974,0.1297,98289.0,98279.0,0.63566298]
[1732377926430,0.1297,98289.0,98281.0,0.15]
[1732377926658,0.1297,98289.0,98285.0,0.15]
[1732377926904,0.1297,98289.0,98285.0,0.49358897]
[1732377927130,0.1297,98289.0,98286.0,0.15]
[1732377928294,0.1297,98289.0,98279.0,0.00086]
[1732377928534,0.001083,98288.0,98279.0,0.00086]
[1732377930505,0.001083,98288.0,98279.0,0.15]
[1732377930704,0.001083,98288.0,98279.0,0.14781637]
[1732377931184,0.11140207,98289.0,98279.0,0.14781637]
[1732377935407,0.11140207,98289.0,98279.0,0.14867637]
[1732377936374,0.11140207,98289.0,98279.0,0.14836012]
[1732377938539,0.09201849,98289.0,98279.0,0.14836012]
[1732377939332,0.0833,98289.0,98279.0,0.14836012]
[1732377940035,0.0833,98289.0,98279.0,0.18185703]
[1732377940296,0.0833,98289.0,98280.0,0.03349691]
[1732377942051,0.0833,98289.0,98279.0,0.14836012]
[1732377942518,0.0833,98289.0,98279.0,0.14174665]
[1732377947032,0.0850198,98289.0,98279.0,0.14174665]
[1732377948611,0.0850198,98289.0,98279.0,0.63533562]
[1732377952503,0.023,98288.0,98287.0,0.15]
[1732377954337,0.023,98288.0,98287.0,0.64358897]
[1732377954557,0.023,98288.0,98287.0,0.66514763]
[1732377954774,0.023,98288.0,98287.0,0.02155866]
[1732377955872,0.023,98288.0,98281.0,0.0473]
[1732377957887,0.023,98288.0,98287.0,0.15]
[1732377958981,0.023,98288.0,98284.0,0.15]
[1732377959214,0.023,98288.0,98281.0,0.0473]
[1732377961148,0.00127177,98287.0,98279.0,0.15086]
[1732377962966,0.00127177,98287.0,98281.0,0.15]
[1732377963959,0.00127177,98287.0,98280.0,0.15]
[1732377966476,0.00127177,98287.0,98279.0,0.15]
[1732377966944,0.00127177,98287.0,98277.0,0.05457164]
[1732377967158,0.00127177,98287.0,98277.0,0.10914328]
[1732377968692,0.00127177,98287.0,98277.0,0.05457164]
[1732377968693,0.0804,98286.0,98277.0,0.05457164]
[1732377968904,0.0804,98284.0,98277.0,0.10914328]
[1732377969118,0.07995207,98284.0,98278.0,0.15]
[1732377969590,0.0477,98282.0,98278.0,0.15]
[1732377969825,0.0012714,98281.0,98278.0,0.15]
[1732377970036,0.0012714,98281.0,98273.0,0.19075123]
[1732377970477,0.0012714,98281.0,98273.0,0.15]
[1732377972234,0.0816714,98281.0,98277.0,0.0008599]
[1732377978740,0.0477,98280.0,98277.0,0.0008599]
[1732377979894,0.0816714,98281.0,98278.0,0.15]
[1732377980984,0.0816714,98281.0,98277.0,0.1508599]
[1732377981231,0.0816714,98281.0,98279.0,0.15]
[1732377981493,0.0804,98281.0,98279.0,0.15]
[1732377982578,0.0804,98281.0,98278.0,0.15]
[1732377984591,0.0804,98281.0,98277.0,0.1508599]
[1732377984858,0.0012714,98280.0,98277.0,0.1508599]
[1732377987270,0.0012714,98280.0,98277.0,0.64456885]
[1732377992511,0.0012714,98280.0,98272.0,0.15025435]
[1732377993998,0.0012714,98283.0,98272.0,0.15025435]
[1732377994211,0.0017198,98284.0,98272.0,0.15025435]
[1732377994212,0.0012714,98282.0,98272.0,0.15025435]
[1732377994422,0.0012714,98283.0,98272.0,0.15025435]
[1732377994636,0.0012714,98282.0,98273.0,0.15]
[1732377994845,0.0012714,98283.0,98273.0,0.15]
[1732377995022,0.0012714,98282.0,98273.0,0.15]
[1732377995270,0.0012714,98283.0,98273.0,0.15]
[1732377995506,0.0012714,98282.0,98273.0,0.15]
[1732377995708,0.0012714,98283.0,98277.0,0.00086]
[1732377995911,0.0012714,98282.0,98277.0,0.00086]
[1732377996117,0.0012714,98283.0,98277.0,0.00086]
[1732377996351,0.0012714,98282.0,98277.0,0.00086]
[1732377996555,0.0012714,98283.0,98277.0,0.00086]
[1732377996762,0.0012714,98282.0,98277.0,0.00086]
[1732377996969,0.0012714,98283.0,98277.0,0.00086]
[1732377997179,0.0012714,98282.0,98277.0,0.00086]
[1732377997384,0.0012714,98283.0,98277.0,0.00086]
[1732377997605,0.0012714,98282.0,98277.0,0.00086]
[1732377997815,0.0012714,98283.0,98277.0,0.00086]
[1732377998021,0.0012714,98282.0,98277.0,0.00086]
[1732377998231,0.0012714,98283.0,98274.0,0.05457164]
[1732377998439,0.0012714,98282.0,98274.0,0.05457164]
[1732377998643,0.0017198,98284.0,98274.0,0.05457164]
[1732377998644,0.0012714,98283.0,98274.0,0.05457164]
[1732377998848,0.0012714,98282.0,98274.0,0.05457164]
[1732377999055,0.0012714,98283.0,98274.0,0.05457164]
[1732377999264,0.0012714,98282.0,98274.0,0.05457164]
[1732377999478,0.0012714,98283.0,98274.0,0.05457164]
[1732377999692,0.0012714,98282.0,98274.0,0.05457164]
[1732377999895,0.0012714,98283.0,98274.0,0.05457164]
[1732378000109,0.0012714,98282.0,98274.0,0.05457164]
[1732378000332,0.0012714,98283.0,98274.0,0.20457164]
[1732378000552,0.0012714,98282.0,98274.0,0.20457164]
[1732378000793,0.0012714,98283.0,98274.0,0.20457164]
[1732378001025,0.0017198,98284.0,98274.0,0.20457164]
[1732378001026,0.0012714,98282.0,98274.0,0.20457164]
[1732378001274,0.0012714,98283.0,98274.0,0.20457164]
[1732378001501,0.0012714,98282.0,98274.0,0.20457164]
[1732378001738,0.0012714,98283.0,98274.0,0.20457164]
[1732378001991,0.0012714,98282.0,98274.0,0.20457164]
[1732378002244,0.0012714,98283.0,98274.0,0.04026526]
[1732378002502,0.001854,98279.0,98274.0,0.04002806]
[1732378002769,0.001854,98279.0,98275.0,0.0456]
[1732378003788,0.001854,98279.0,98276.0,0.02013047]
[1732378005286,0.001854,98283.0,98276.0,0.02013047]
[1732378009170,0.001854,98283.0,98276.0,0.02099047]
[1732378012143,0.001854,98283.0,98277.0,0.15]
[1732378012356,0.001854,98283.0,98277.0,0.49346471]
[1732378012569,0.001854,98283.0,98278.0,0.15]
[1732378012775,0.001854,98283.0,98276.0,0.02099047]